fUSD/lending_fUSD_20250916
["ID","MTS","AMOUNT","RATE_DAILY","PERIOD"]
[385823606,1758057057486,-400.0,0.00030684,6]
[385823607,1758057057495,-190.99017904,0.00030684,6]
[385823608,1758057057505,-400.0,0.00030684,6]
[385823609,1758057057514,-154.41887654,0.00030684,6]
[385823610,1758057057523,-400.0,0.00030684,6]
[385823611,1758057057533,-400.0,0.00030684,6]
[385823612,1758057057543,-479.52,0.00030684,6]
[385823613,1758057057553,-400.0,0.00030684,6]
[385823614,1758057057562,-400.0,0.00030684,6]
[385823615,1758057057571,-400.0,0.00030684,6]
[385823616,1758057057580,-507.91,0.00030684,6]
[385823617,1758057057590,-400.0,0.00030684,6]
[385823618,1758057057599,-441.74,0.00030684,6]
[385823619,1758057057609,-400.0,0.00030684,6]
[385823620,1758057057620,-547.58,0.00030684,6]
[385823621,1758057057629,-2216.47,0.00030684,6]
[385823622,1758057057639,-400.0,0.00030684,6]
[385823623,1758057057648,-400.0,0.00030684,6]
[385823624,1758057057658,-400.0,0.00030684,6]
[385823625,1758057057667,-400.0,0.00030684,6]
[385823626,1758057057676,-400.0,0.00030684,6]
[385823627,1758057057686,-400.0,0.00030684,6]
[385823628,1758057057695,-1300.0,0.00030697,7]
[385823629,1758057057704,-504.60384057,0.00030721,5]
[385823630,1758057057714,-500.0,0.00030779,120]
[385823631,1758057057723,-839.09243417,0.00030795,2]
[385823632,1758057057735,-500.0,0.00030808,7]
[385823633,1758057057744,-700.0,0.00030809,7]
[385823634,1758057057754,-153.9,0.00030822,30]
[385823635,1758057057764,-173.1,0.00030822,30]
[385823636,1758057057773,-500.0,0.00030856,7]
[385823637,1758057057783,-2728.80702614,0.00030858,2]
[385823638,1758057057792,-2400.0,0.000309,11]
[385823639,1758057057802,-156.11368438,0.000309,2]
[385823640,1758057057811,-156.11368437,0.000309,2]
[385823641,1758057057821,-156.11368437,0.000309,2]
[385823642,1758057057831,-156.11368437,0.000309,2]
[385823643,1758057057841,-156.11368437,0.000309,2]
[385823644,1758057057851,-156.11368437,0.000309,2]
[385823645,1758057057860,-156.11368437,0.000309,2]
[385823646,1758057057870,-156.11368437,0.000309,2]
[385823647,1758057057880,-156.11368437,0.000309,2]
[385823648,1758057057892,-156.11368437,0.000309,2]
[385823649,1758057057902,-156.11368437,0.000309,2]
[385823650,1758057057912,-600.0,0.00030916,7]
[385823651,1758057057921,-1522.0,0.00030932,2]
[385823652,1758057057931,-34110.0,0.00030932,2]
[385823653,1758057057940,-1090.0,0.00030932,2]
[385823654,1758057057951,-151.0,0.00030932,7]
[385823655,1758057057960,-151.0,0.00030932,7]
[385823656,1758057057970,-156.11368437,0.00030939,2]
[385823657,1758057057979,-600.0,0.00030943,7]
[385823658,1758057057989,-500.0,0.00030956,7]
[385823659,1758057057998,-300.0,0.00030957,10]
[385823660,1758057058008,-666.0,0.00030957,10]
[385823661,1758057058018,-500.0,0.00030957,6]
[385823662,1758057058027,-400.0,0.00030958,6]
[385823663,1758057058037,-472.24,0.00030958,6]
[385823664,1758057058047,-400.0,0.00030958,6]
[385823665,1758057058056,-400.0,0.00030958,6]
[385823666,1758057058067,-400.0,0.00030958,6]
[385823667,1758057058076,-227.223731,0.00030958,6]
[385823668,1758057058086,-400.0,0.00030958,6]
[385823669,1758057058095,-400.0,0.00030958,6]
[385823670,1758057058105,-400.0,0.00030958,6]
[385823671,1758057058115,-400.0,0.00030958,6]
[385823672,1758057058124,-400.0,0.00030958,6]
[385823673,1758057058134,-400.0,0.00030958,6]
[385823674,1758057058143,-400.0,0.00030958,6]
[385823675,1758057058153,-400.0,0.00030958,6]
[385823676,1758057058162,-400.0,0.00030958,6]
[385823677,1758057058172,-400.0,0.00030958,6]
[385823678,1758057058181,-400.0,0.00030958,6]
[385823679,1758057058191,-400.0,0.00030958,6]
[385823680,1758057058200,-400.0,0.00030958,6]
[385823681,1758057058209,-400.0,0.00030958,6]
[385823682,1758057058219,-400.0,0.00030958,6]
[385823683,1758057058228,-400.0,0.00030958,6]
[385823684,1758057058237,-400.0,0.00030958,6]
[385823685,1758057058246,-400.0,0.00030958,6]
[385823686,1758057058256,-400.0,0.00030958,6]
[385823687,1758057058266,-400.0,0.00030958,6]
[385823688,1758057058275,-400.0,0.00030958,6]
[385823689,1758057058284,-400.0,0.00030958,6]
[385823690,1758057058293,-157.54805949,0.00030958,6]
[385823691,1758057058302,-400.0,0.00030958,6]
[385823692,1758057058313,-595.04,0.00030958,6]
[385823693,1758057058323,-400.0,0.00030958,6]
[385823694,1758057058332,-400.0,0.00030958,6]
[385823695,1758057058342,-817.46,0.00030958,6]
[385823696,1758057058351,-400.0,0.00030958,6]
[385823697,1758057058360,-400.0,0.00030958,6]
[385823698,1758057058370,-426.72,0.00030958,6]
[385823699,1758057058379,-400.0,0.00030958,6]
[385823700,1758057058389,-400.0,0.00030958,6]
[385823701,1758057058398,-400.0,0.00030958,6]
[385823702,1758057058408,-400.0,0.00030958,6]
[385823703,1758057058418,-485.35396014,0.00030958,6]
[385823704,1758057058427,-400.0,0.00030958,6]
[385823705,1758057058436,-400.0,0.00030958,6]
[385823706,1758057058445,-406.45576837,0.00030958,6]
[385823707,1758057058455,-400.0,0.00030958,6]
[385823708,1758057058464,-400.0,0.00030958,6]
[385823709,1758057058473,-400.0,0.00030958,6]
[385823710,1758057058482,-400.0,0.00030958,6]
[385823711,1758057058492,-400.0,0.00030958,6]
[385823712,1758057058501,-400.0,0.00030958,6]
[385823713,1758057058510,-400.0,0.00030958,6]
[385823714,1758057058519,-400.0,0.00030958,6]
[385823715,1758057058529,-400.0,0.00030958,6]
[385823716,1758057058538,-466.82,0.00030958,6]
[385823717,1758057058548,-400.0,0.00030958,6]
[385823718,1758057058557,-436.46,0.00030958,6]
[385823719,1758057058566,-400.0,0.00030958,6]
[385823720,1758057058575,-483.62620726,0.00030958,6]
[385823721,1758057058585,-400.0,0.00030958,6]
[385823722,1758057058594,-400.0,0.00030958,6]
[385823723,1758057058603,-400.0,0.00030958,6]
[385823724,1758057058612,-400.0,0.00030958,6]
[385823725,1758057058622,-400.0,0.00030958,6]
[385823726,1758057058632,-400.0,0.00030958,6]
[385823727,1758057058641,-400.0,0.00030958,6]
[385823728,1758057058651,-400.0,0.00030958,6]
[385823729,1758057058660,-400.0,0.00030958,6]
[385823730,1758057058670,-400.0,0.00030958,6]
[385823731,1758057058679,-400.0,0.00030958,6]
[385823732,1758057058688,-400.0,0.00030958,6]
[385823733,1758057058698,-400.0,0.00030958,6]
[385823734,1758057058708,-402.69724093,0.00030958,6]
[385823735,1758057058717,-400.0,0.00030958,6]
[385823736,1758057058727,-444.47,0.00030958,6]
[385823737,1758057058736,-400.0,0.00030958,6]
[385823738,1758057058745,-477.87180776,0.00030958,6]
[385823739,1758057058754,-400.0,0.00030958,6]
[385823740,1758057058764,-400.0,0.00030958,6]
[385823741,1758057058773,-400.0,0.00030958,6]
[385823742,1758057058782,-511.96299433,0.00030958,6]
[385823743,1758057058792,-400.0,0.00030958,6]
[385823744,1758057058801,-400.0,0.00030958,6]
[385823745,1758057058811,-283.83416807,0.00030958,6]
[385823746,1758057058820,-400.0,0.00030958,6]
[385823747,1758057058829,-400.0,0.00030958,6]
[385823748,1758057058838,-400.0,0.00030958,6]
[385823749,1758057058848,-400.0,0.00030958,6]
[385823750,1758057058857,-265.51600002,0.00030958,6]
[385823751,1758057058866,-264.77766308,0.00030958,6]
[385823752,1758057058875,-252.21778445,0.00030958,6]
[385823753,1758057058884,-400.0,0.00030958,6]
[385823754,1758057058896,-400.0,0.00030958,6]
[385823755,1758057058906,-400.0,0.00030958,6]
[385823756,1758057058915,-400.0,0.00030958,6]
[385823757,1758057058925,-400.0,0.00030958,6]
[385823758,1758057058934,-400.0,0.00030958,6]
[385823759,1758057058944,-400.0,0.00030958,6]
[385823760,1758057058953,-538.45,0.00030958,6]
[385823761,1758057058962,-400.0,0.00030958,6]
[385823762,1758057058972,-897.93,0.00030958,6]
[385823763,1758057058982,-400.0,0.00030958,6]
[385823764,1758057058991,-400.0,0.00030958,6]
[385823765,1758057059000,-400.0,0.00030958,6]
[385823766,1758057059010,-400.39,0.00030958,6]
[385823767,1758057059019,-258.7735274,0.00030958,6]
[385823768,1758057059029,-400.0,0.00030958,6]
[385823769,1758057059038,-477.46,0.00030958,6]
[385823770,1758057059047,-400.0,0.00030958,6]
[385823771,1758057059057,-400.0,0.00030958,6]
[385823772,1758057059067,-400.0,0.00030958,6]
[385823773,1758057059076,-400.0,0.00030958,6]
[385823774,1758057059085,-400.0,0.00030958,6]
[385823775,1758057059095,-400.0,0.00030958,6]
[385823776,1758057059104,-400.0,0.00030958,6]
[385823777,1758057059114,-400.0,0.00030958,6]
[385823778,1758057059123,-466.24035249,0.00030958,6]
[385823779,1758057059133,-400.0,0.00030958,6]
[385823780,1758057059142,-400.0,0.00030958,6]
[385823781,1758057059151,-400.0,0.00030958,6]
[385823782,1758057059421,-400.0,0.00030958,6]
[385823783,1758057059435,-400.0,0.00030958,6]
[385823784,1758057059445,-420.75,0.00030958,6]
[385823785,1758057059454,-400.0,0.00030958,6]
[385823786,1758057059463,-400.0,0.00030958,6]
[385823787,1758057059473,-400.0,0.00030958,6]
[385823788,1758057059482,-420.72809811,0.00030958,6]
[385823789,1758057059491,-400.0,0.00030958,6]
[385823790,1758057059501,-2152.72,0.00030958,6]
[385823791,1758057059510,-446.8,0.00030958,6]
[385823792,1758057059520,-400.0,0.00030958,6]
[385823793,1758057059529,-400.0,0.00030958,6]
[385823794,1758057059538,-400.0,0.00030958,6]
[385823795,1758057059548,-400.0,0.00030958,6]
[385823796,1758057059557,-400.0,0.00030958,6]
[385823797,1758057059567,-400.0,0.00030958,6]
[385823798,1758057059576,-400.0,0.00030958,6]
[385823799,1758057059585,-400.0,0.00030958,6]
[385823800,1758057059595,-400.0,0.00030958,6]
[385823801,1758057059604,-151.0,0.00030958,7]
[385823802,1758057059614,-270.03493384,0.00030958,6]
[385823803,1758057059624,-400.0,0.00030958,6]
[385823804,1758057059633,-400.0,0.00030958,6]
[385823805,1758057059642,-400.0,0.00030958,6]
[385823806,1758057059652,-400.0,0.00030958,6]
[385823807,1758057059661,-400.0,0.00030958,6]
[385823808,1758057059671,-400.0,0.00030958,6]
[385823809,1758057059680,-400.0,0.00030958,6]
[385823810,1758057059689,-400.0,0.00030958,6]
[385823811,1758057059699,-400.0,0.00030958,6]
[385823812,1758057059709,-400.0,0.00030958,6]
[385823813,1758057059719,-400.0,0.00030958,6]
[385823814,1758057059729,-400.0,0.00030958,6]
[385823815,1758057059739,-400.0,0.00030958,6]
[385823816,1758057059749,-400.0,0.00030958,6]
[385823817,1758057059759,-400.0,0.00030958,6]
[385823818,1758057059768,-400.0,0.00030958,6]
[385823819,1758057059778,-414.26,0.00030958,6]
[385823820,1758057059787,-400.0,0.00030958,6]
[385823821,1758057059797,-400.0,0.00030958,6]
[385823822,1758057059807,-633.69,0.00030958,6]
[385823823,1758057059816,-400.0,0.00030958,6]
[385823824,1758057059826,-400.0,0.00030958,6]
[385823825,1758057059835,-417.94733251,0.00030958,6]
[385823826,1758057059845,-400.0,0.00030958,6]
[385823827,1758057059854,-400.0,0.00030958,6]
[385823828,1758057059864,-400.0,0.00030958,6]
[385823829,1758057059874,-400.0,0.00030958,6]
[385823830,1758057059883,-400.0,0.00030958,6]
[385823831,1758057059894,-400.0,0.00030958,6]
[385823832,1758057059905,-400.0,0.00030958,6]
[385823833,1758057059914,-400.0,0.00030958,6]
[385823834,1758057059923,-400.0,0.00030958,6]
[385823835,1758057059932,-400.0,0.00030958,6]
[385823836,1758057059943,-400.0,0.00030958,6]
[385823837,1758057059952,-488.35,0.00030958,6]
[385823838,1758057059962,-400.0,0.00030958,6]
[385823839,1758057059972,-400.0,0.00030958,6]
[385823840,1758057059982,-400.0,0.00030958,6]
[385823841,1758057059991,-400.0,0.00030958,6]
[385823842,1758057060000,-400.0,0.00030958,6]
[385823843,1758057060010,-400.0,0.00030958,6]
[385823844,1758057060019,-400.0,0.00030958,6]
[385823845,1758057060029,-400.0,0.00030958,6]
[385823846,1758057060039,-400.0,0.00030958,6]
[385823847,1758057060049,-408.10823428,0.00030958,6]
[385823848,1758057060059,-636.75,0.00030958,6]
[385823849,1758057060068,-400.0,0.00030958,6]
[385823850,1758057060078,-400.0,0.00030958,6]
[385823851,1758057060088,-400.0,0.00030958,6]
[385823852,1758057060097,-159.27056212,0.00030958,6]
[385823853,1758057060107,-400.0,0.00030958,6]
[385823854,1758057060116,-400.0,0.00030958,6]
[385823855,1758057060126,-400.0,0.00030958,6]
[385823856,1758057060135,-400.0,0.00030958,6]
[385823857,1758057060145,-400.0,0.00030958,6]
[385823858,1758057060154,-400.0,0.00030958,6]
[385823859,1758057060163,-400.0,0.00030958,6]
[385823860,1758057060173,-400.0,0.00030958,6]
[385823861,1758057060182,-605.63,0.00030958,6]
[385823862,1758057060191,-400.0,0.00030958,6]
[385823863,1758057060201,-535.77,0.00030958,6]
[385823864,1758057060210,-400.0,0.00030958,6]
[385823865,1758057060219,-400.0,0.00030958,6]
[385823866,1758057060229,-400.0,0.00030958,6]
[385823867,1758057060238,-400.0,0.00030958,6]
[385823868,1758057060248,-163.5465336,0.00030958,6]
[385823869,1758057060258,-400.0,0.00030958,6]
[385823870,1758057060267,-400.0,0.00030958,6]
[385823871,1758057060277,-609.74,0.00030958,6]
[385823872,1758057060287,-400.0,0.00030958,6]
[385823873,1758057060296,-400.0,0.00030958,6]
[385823874,1758057060306,-365.96725734,0.00030958,6]
[385823875,1758057060315,-400.0,0.00030958,6]
[385823876,1758057060324,-400.0,0.00030958,6]
[385823877,1758057060334,-400.0,0.00030958,6]
[385823878,1758057060344,-470.05,0.00030958,6]
[385823879,1758057060354,-400.0,0.00030958,6]
[385823880,1758057060363,-713.21,0.00030958,6]
[385823881,1758057060373,-400.0,0.00030958,6]
[385823882,1758057060382,-545.98,0.00030958,6]
[385823883,1758057060391,-273.21896845,0.00030958,6]
[385823884,1758057060402,-400.0,0.00030958,6]
[385823885,1758057060411,-400.0,0.00030958,6]
[385823886,1758057060420,-1275.84,0.00030958,6]
[385823887,1758057060430,-435.33,0.00030958,6]
[385823888,1758057060440,-547.76527371,0.00030958,6]
[385823889,1758057060449,-454.16463531,0.00030958,6]
[385823890,1758057060459,-400.0,0.00030958,6]
[385823891,1758057060468,-400.0,0.00030958,6]
[385823892,1758057060477,-400.0,0.00030958,6]
[385823893,1758057060488,-400.0,0.00030958,6]
[385823894,1758057060497,-400.0,0.00030958,6]
[385823895,1758057060507,-400.0,0.00030958,6]
[385823896,1758057060516,-400.0,0.00030958,6]
[385823897,1758057060526,-400.0,0.00030958,6]
[385823898,1758057060535,-1307.51,0.00030958,6]
[385823899,1758057060545,-400.0,0.00030958,6]
[385823900,1758057060555,-400.0,0.00030958,6]
[385823901,1758057060564,-400.0,0.00030958,6]
[385823902,1758057060573,-585.24,0.00030958,6]
[385823903,1758057060582,-400.0,0.00030958,6]
[385823904,1758057060592,-400.0,0.00030958,6]
[385823905,1758057060601,-400.0,0.00030958,6]
[385823906,1758057060611,-400.0,0.00030958,6]
[385823907,1758057060620,-400.0,0.00030958,6]
[385823908,1758057060630,-2094.1,0.00030958,6]
[385823909,1758057060640,-400.0,0.00030958,6]
[385823910,1758057060649,-400.0,0.00030958,6]
[385823911,1758057060659,-432.42,0.00030958,6]
[385823912,1758057060668,-400.0,0.00030958,6]
[385823913,1758057060677,-151.0,0.00030958,7]
[385823914,1758057060686,-426.07,0.00030958,6]
[385823915,1758057060696,-807.22,0.00030958,6]
[385823916,1758057060705,-400.0,0.00030958,6]
[385823917,1758057060715,-191.47074682,0.00030958,6]
[385823918,1758057060724,-400.0,0.00030958,6]
[385823919,1758057060734,-450.81,0.00030958,6]
[385823920,1758057060743,-400.0,0.00030958,6]
[385823921,1758057060753,-217.81590871,0.00030958,6]
[385823922,1758057060762,-1320.54,0.00030958,6]
[385823923,1758057060771,-400.0,0.00030958,6]
[385823924,1758057060781,-400.0,0.00030958,6]
[385823925,1758057060791,-400.0,0.00030958,6]
[385823926,1758057060800,-632.25,0.00030958,6]
[385823927,1758057060810,-400.0,0.00030958,6]
[385823928,1758057060820,-2034.04,0.00030958,6]
[385823929,1758057060829,-400.0,0.00030958,6]
[385823930,1758057060838,-400.0,0.00030958,6]
[385823931,1758057060848,-691.17,0.00030958,6]
[385823932,1758057060857,-400.0,0.00030958,6]
[385823933,1758057060867,-400.0,0.00030958,6]
[385823934,1758057060877,-712.91,0.00030958,6]
[385823935,1758057060886,-400.0,0.00030958,6]
[385823936,1758057060900,-400.0,0.00030958,6]
[385823937,1758057060909,-400.0,0.00030958,6]
[385823938,1758057060918,-283.64107479,0.00030958,6]
[385823939,1758057060928,-400.0,0.00030958,6]
[385823940,1758057060938,-281.99201686,0.00030958,6]
[385823941,1758057060947,-531.95,0.00030958,6]
[385823942,1758057060957,-400.0,0.00030958,6]
[385823943,1758057060967,-400.0,0.00030958,6]
[385823944,1758057060976,-400.0,0.00030958,6]
[385823945,1758057060986,-400.0,0.00030958,6]
[385823946,1758057060995,-400.0,0.00030958,6]
[385823947,1758057061004,-682.52,0.00030958,6]
[385823948,1758057061014,-400.0,0.00030958,6]
[385823949,1758057061023,-400.0,0.00030958,6]
[385823950,1758057061032,-400.0,0.00030958,6]
[385823951,1758057061041,-668.63,0.00030958,6]
[385823952,1758057061051,-2182.91,0.00030958,6]
[385823953,1758057061060,-400.0,0.00030958,6]
[385823954,1758057061070,-400.0,0.00030958,6]
[385823955,1758057061079,-577.47,0.00030958,6]
[385823956,1758057061088,-400.0,0.00030958,6]
[385823957,1758057061098,-400.0,0.00030958,6]
[385823958,1758057061107,-400.0,0.00030958,6]
[385823959,1758057061117,-400.0,0.00030958,6]
[385823960,1758057061126,-400.0,0.00030958,6]
[385823961,1758057061136,-613.19,0.00030958,6]
[385823962,1758057061146,-409.76,0.00030958,6]
[385823963,1758057061155,-1251.89,0.00030958,6]
[385823964,1758057061165,-400.0,0.00030958,6]
[385823965,1758057061175,-400.0,0.00030958,6]
[385823966,1758057061184,-400.0,0.00030958,6]
[385823967,1758057061193,-1025.88,0.00030958,6]
[385823968,1758057061202,-400.0,0.00030958,6]
[385823969,1758057061211,-395.25668797,0.00030958,6]
[385823970,1758057061221,-400.0,0.00030958,6]
[385823971,1758057061230,-924.97,0.00030958,6]
[385823972,1758057061240,-593.74,0.00030958,6]
[385823973,1758057061250,-605.66,0.00030958,6]
[385823974,1758057061259,-516.31,0.00030958,6]
[385823975,1758057061269,-400.0,0.00030958,6]
[385823976,1758057061278,-400.0,0.00030958,6]
[385823977,1758057061288,-400.0,0.00030958,6]
[385823978,1758057061297,-400.0,0.00030958,6]
[385823979,1758057061306,-400.0,0.00030958,6]
[385823980,1758057061315,-400.0,0.00030958,6]
[385823981,1758057061325,-400.0,0.00030958,6]
[385823982,1758057061334,-400.0,0.00030958,6]
[385823983,1758057061343,-1014.87,0.00030958,6]
[385823984,1758057061353,-400.0,0.00030958,6]
[385823985,1758057061362,-524.6,0.00030958,6]
[385823986,1758057061371,-400.0,0.00030958,6]
[385823987,1758057061382,-493.11,0.00030958,6]
[385823988,1758057061391,-400.0,0.00030958,6]
[385823989,1758057061401,-412.98,0.00030958,6]
[385823990,1758057061410,-400.0,0.00030958,6]
[385823991,1758057061419,-400.0,0.00030958,6]
[385823992,1758057061429,-588.1,0.00030958,6]
[385823993,1758057061439,-400.0,0.00030958,6]
[385823994,1758057061449,-400.0,0.00030958,6]
[385823995,1758057061458,-529.64,0.00030958,6]
[385823996,1758057061467,-436.67,0.00030958,6]
[385823997,1758057061476,-574.6,0.00030958,6]
[385823998,1758057061485,-400.0,0.00030958,6]
[385823999,1758057061494,-400.0,0.00030958,6]
[385824000,1758057061504,-400.0,0.00030958,6]
[385824001,1758057061513,-983.68,0.00030958,6]
[385824002,1758057061523,-400.0,0.00030958,6]
[385824003,1758057061532,-410.54,0.00030958,6]
[385824004,1758057061542,-400.0,0.00030958,6]
[385824005,1758057061551,-875.58,0.00030958,6]
[385824006,1758057061561,-400.0,0.00030958,6]
[385824007,1758057061570,-457.79,0.00030958,6]
[385824008,1758057061580,-409.35,0.00030958,6]
[385824009,1758057061589,-400.0,0.00030958,6]
[385824010,1758057061598,-400.0,0.00030958,6]
[385824011,1758057061608,-791.37,0.00030958,6]
[385824012,1758057061617,-625.93,0.00030958,6]
[385824013,1758057061626,-400.0,0.00030958,6]
[385824014,1758057061636,-609.54,0.00030958,6]
[385824015,1758057061645,-510.33,0.00030958,6]
[385824016,1758057061654,-556.43,0.00030958,6]
[385824017,1758057061663,-745.45,0.00030958,6]
[385824018,1758057061673,-400.0,0.00030958,6]
[385824019,1758057061682,-400.0,0.00030958,6]
[385824020,1758057061691,-438.34,0.00030958,6]
[385824021,1758057061701,-1260.15,0.00030958,6]
[385824022,1758057061710,-400.0,0.00030958,6]
[385824023,1758057061720,-461.54,0.00030958,6]
[385824024,1758057061730,-636.26,0.00030958,6]
[385824025,1758057061798,-400.0,0.00030958,6]
[385824026,1758057061807,-400.0,0.00030958,6]
[385824027,1758057061817,-400.0,0.00030958,6]
[385824028,1758057061826,-371.70474454,0.00030958,6]
[385824029,1758057061835,-479.5,0.00030958,6]
[385824030,1758057061844,-1289.38,0.00030958,6]
[385824031,1758057061854,-587.63,0.00030958,6]
[385824032,1758057061862,-400.0,0.00030958,6]
[385824033,1758057061872,-400.0,0.00030958,6]
[385824034,1758057061881,-506.39,0.00030958,6]
[385824035,1758057061891,-400.0,0.00030958,6]
[385824036,1758057061903,-462.29,0.00030958,6]
[385824037,1758057061912,-400.0,0.00030958,6]
[385824038,1758057061922,-400.0,0.00030958,6]
[385824039,1758057061931,-400.0,0.00030958,6]
[385824040,1758057061941,-400.0,0.00030958,6]
[385824041,1758057061950,-400.0,0.00030958,6]
[385824042,1758057061959,-690.9,0.00030958,6]
[385824043,1758057061969,-1146.39,0.00030958,6]
[385824044,1758057061979,-400.0,0.00030958,6]
[385824045,1758057061989,-449.23,0.00030958,5]
[385824046,1758057061998,-684.79,0.00030958,6]
[385824047,1758057062007,-400.0,0.00030958,6]
[385824048,1758057062017,-400.0,0.00030958,6]
[385824049,1758057062027,-400.0,0.00030958,6]
[385824050,1758057062036,-400.0,0.00030958,6]
[385824051,1758057062045,-400.0,0.00030958,6]
[385824052,1758057062055,-843.08,0.00030958,6]
[385824053,1758057062064,-400.0,0.00030958,6]
[385824054,1758057062073,-400.0,0.00030958,6]
[385824055,1758057062082,-400.0,0.00030958,6]
[385824056,1758057062092,-400.0,0.00030958,6]
[385824057,1758057062101,-400.0,0.00030958,6]
[385824058,1758057062111,-400.0,0.00030958,6]
[385824059,1758057062121,-400.0,0.00030958,6]
[385824060,1758057062130,-400.0,0.00030958,6]
[385824061,1758057062139,-497.6,0.00030958,6]
[385824062,1758057062149,-400.0,0.00030958,6]
[385824063,1758057062159,-400.0,0.00030958,6]
[385824064,1758057062168,-400.0,0.00030958,6]
[385824065,1758057062178,-400.0,0.00030958,6]
[385824066,1758057062187,-400.0,0.00030958,6]
[385824067,1758057062197,-400.0,0.00030958,6]
[385824068,1758057062206,-400.0,0.00030958,6]
[385824069,1758057062216,-400.0,0.00030958,6]
[385824070,1758057062225,-195.31585498,0.00030958,6]
[385824071,1758057062234,-2611.36,0.00030958,6]
[385824072,1758057062244,-400.0,0.00030958,6]
[385824073,1758057062254,-400.0,0.00030958,6]
[385824074,1758057062264,-400.0,0.00030958,6]
[385824075,1758057062273,-553.62,0.00030958,6]
[385824076,1758057062282,-400.0,0.00030958,6]
[385824077,1758057062291,-467.85,0.00030958,6]
[385824078,1758057062301,-400.0,0.00030958,6]
[385824079,1758057062311,-400.0,0.00030958,6]
[385824080,1758057062320,-836.09,0.00030958,6]
[385824081,1758057062329,-1289.35,0.00030958,6]
[385824082,1758057062338,-400.0,0.00030958,6]
[385824083,1758057062347,-400.0,0.00030958,6]
[385824084,1758057062357,-400.0,0.00030958,6]
[385824085,1758057062366,-400.0,0.00030958,6]
[385824086,1758057062375,-430.5,0.00030958,6]
[385824087,1758057062385,-400.0,0.00030958,6]
[385824088,1758057062394,-400.0,0.00030958,6]
[385824089,1758057062403,-400.0,0.00030958,6]
[385824090,1758057062414,-400.0,0.00030958,6]
[385824091,1758057062423,-479.52,0.00030958,6]
[385824092,1758057062433,-400.0,0.00030958,6]
[385824093,1758057062443,-400.0,0.00030958,6]
[385824094,1758057062453,-400.0,0.00030958,6]
[385824095,1758057062463,-507.91,0.00030958,6]
[385824096,1758057062473,-441.74,0.00030958,6]
[385824097,1758057062482,-400.0,0.00030958,6]
[385824098,1758057062492,-400.0,0.00030958,6]
[385824099,1758057062502,-547.58,0.00030958,6]
[385824100,1758057062511,-2216.47,0.00030958,6]
[385824101,1758057062521,-400.0,0.00030958,6]
[385824102,1758057062530,-287.15826141,0.00030958,6]
[385824103,1758057062539,-400.0,0.00030958,6]
[385824104,1758057062549,-400.0,0.00030958,6]
[385824105,1758057062558,-400.0,0.00030958,6]